Cogmind - Beta 9.2 @@@ ROGUE MODE // 2019.11.20 @ 01:41:18 Player: Finestep Result: Destroyed by D-53 Grenadier with Mini Grenade Launcher Performance ------------- Evolutions (0) 0 Regions Visited (2) 400 Robots Destroyed (26) 130 Value Destroyed (446) 446 Prototype IDs (3) 60 Alien Tech Used (0) 0 Bonus (0) 0 TOTAL SCORE: 1036 Bonus ------- None Cogmind --------- Core Integrity 0/250 Matter 295/300 Energy 125/125 System Corruption 2% Temperature Cool (96) Movement Rolling (140) Ox5 Location -10/Mines Parts ------- > --- POWER (1) -------- Light Ion Engine > --- PROPULSION (2) --- Armored Wheel > --- UTILITY (2) ------ High-capacity Storage Unit High-capacity Storage Unit > --- WEAPON (2) ------- Light Assault Rifle > --- INVENTORY (20) --- Ion Engine Light Treads Light Treads Light Treads Armored Wheel Armored Wheel Armored Wheel Disposable Heat Sink Small Storage Unit Medium Storage Unit Medium Storage Unit High-capacity Battery (400) Transport Network Coupler Particle Gun Particle Gun Particle Gun Plasma Flamer Mining Claw Peak State ------------ > --- POWER ------------ Light Ion Engine > --- PROPULSION ------- Wheel Armored Wheel > --- UTILITY ---------- High-capacity Storage Unit High-capacity Storage Unit > --- WEAPON ----------- Light Assault Rifle Light Assault Rifle > --- INVENTORY -------- Ion Engine Light Treads Light Treads Light Treads Armored Wheel Armored Wheel Armored Wheel Disposable Heat Sink Small Storage Unit Medium Storage Unit Medium Storage Unit High-capacity Battery Transport Network Coupler Particle Gun Particle Gun Particle Gun Particle Gun Plasma Flamer Mining Claw [Rating: 11] Favorites ----------- Power Light Ion Engine Engine Light Ion Engine Propulsion Wheel Treads Light Treads Wheel Wheel Utility Small Storage Unit Storage Small Storage Unit Weapon Light Assault Rifle Energy Gun Medium Laser Ballistic Gun Light Assault Rifle Slashing Weapon Mining Claw Build | -11 -10 -10 ------- Run | Scr Mat Min Slots Evolved . | . . . Power . | . . . Propulsion . | . . . Utility . | . . . Weapon . | . . . Parts Attached 27 | 8 17 2 Power 1 | 1 . . Engine 1 | 1 . . Core . | . . . Reactor . | . . . Propulsion 8 | 3 4 1 Treads 4 | 1 3 . Leg . | . . . Wheel 4 | 2 1 1 Hover . | . . . Flight . | . . . Utility 6 | 2 4 . Device . | . . . Storage 6 | 2 4 . Processor . | . . . Hackware . | . . . Protection . | . . . Artifact . | . . . Weapon 12 | 2 9 1 Energy Gun 7 | 2 4 1 Energy Cannon . | . . . Ballistic Gun 4 | . 4 . Ballistic Cannon . | . . . Launcher . | . . . Special Weapon . | . . . Impact Weapon . | . . . Slashing Weapon 1 | . 1 . Piercing Weapon . | . . . Special Melee Weapon . | . . . Unidentified Prototypes . | . . . Parts Lost 6 | . 3 3 Power . | . . . Propulsion 2 | . 1 1 Utility . | . . . Weapon 4 | . 2 2 Highest Loss Streak 3 | . 2 3 Average Slot Usage (%) 99 | . 99 99 Engine 14 | . 14 14 Treads 13 | . 13 12 Wheel 14 | . 13 15 Storage 28 | . 28 28 Energy Gun 7 | . 9 . Ballistic Gun 19 | . 18 27 Naked Turns . | . . . Heaviest Build 69 | 15 69 69 Greatest Support 22 | 20 20 22 Greatest Overweight (x) 6 | 1 6 6 Average Overweight (x) 2 | . 1 5 Largest Inventory Capacity 20 | 8 20 20 Average Capacity 12 | 6 10 20 Most Carried 19 | 5 18 19 Average Carried 11 | 2 9 18 Final Capacity 20 | 8 20 20 Final Carried 18 | 5 18 18 Class Distribution -------------------- 41% | Mutant 36% | Hauler-Mutant 22% | Scavenger-Mutant Dominant Class ---------------- Mutant | -10/Materials Hauler-Mutant | -10/Mines Resources | -11 -10 -10 ----------- Run | Scr Mat Min Matter Collected 575 | 228 327 20 Remotely . | . . . Salvage Created 991 | 112 879 . Parts 67 | 11 56 . Haulers Intercepted 2 | . 2 . Recyclers Shooed 2 | . 2 . Parts Field Recycled . | . . . Retrieved Matter . | . . . Parts Self-Destructed . | . . . Prevented . | . . . Kills | -11 -10 -10 ------- Run | Scr Mat Min Combat Hostiles Destroyed 12 | . 12 . Guns 12 | . 12 . Classes Destroyed 8 | 2 6 . Worker 2 | . 2 . Builder 1 | . 1 . Tunneler 2 | 2 . . Hauler 2 | . 2 . Recycler 4 | 1 3 . Watcher 3 | . 3 . Swarmer 3 | . 3 . Grunt 9 | . 9 . Best Kill Streak 6 | 2 6 . Combat Bots Only 3 | . 3 . Max Kills in Single Turn 2 | 1 2 . Gunslinging . | . . . Exploded . | . . . Melee . | . . . Uniques/NPCs Destroyed . | . . . Combat | -11 -10 -10 -------- Run | Scr Mat Min Damage Taken 862 | . 328 534 Core 281 | . 66 215 Absorbed by Shields . | . . . Core Remaining (%) 100 | 100 . . Volleys Fired 82 | 5 65 12 Largest 2 | 2 2 2 Hottest 100 | 100 100 85 Shots Fired 150 | 10 117 23 Gun 150 | 10 117 23 Cannon . | . . . Launcher . | . . . Special . | . . . Kinetic 88 | . 69 19 Thermal 62 | 10 48 4 Explosive . | . . . Electromagnetic . | . . . Robot Hit Streak 23 | 3 23 3 Robot Miss Streak 3 | 1 2 3 Penetration Max . | . . . Secondary Targets . | . . . Shots Hit Robots 101 | 6 85 10 Core Hits 45 | 4 40 1 Critical Hits 1 | . 1 . Critical Kills . | . . . Critical Parts Destroyed 1 | . 1 . Melee Attacks 1 | . 1 . Impact . | . . . Slashing 1 | . 1 . Piercing . | . . . Sneak Attacks . | . . . Combat Hostiles . | . . . Follow-up Attacks . | . . . Damage Inflicted 1094 | 87 955 52 Guns 1094 | 87 955 52 Cannons . | . . . Explosions . | . . . Melee . | . . . Ramming . | . . . Kinetic 566 | . 527 39 Thermal 528 | 87 428 13 Explosive . | . . . Electromagnetic . | . . . Impact . | . . . Slashing . | . . . Piercing . | . . . Highest Corruption 2 | . 2 2 Average Corruption 2 | . 2 2 Corruption Purged . | . . . Effects 6 | . 3 3 Message Errors 4 | . 2 2 Energy Discharges 2 | . 1 1 Overload Shots . | . . . Overflow Damage . | . . . Projectiles . | . . . Explosions . | . . . Melee . | . . . Knockbacks . | . . . Impact . | . . . Kinetic . | . . . Secondary . | . . . Self-Inflicted Damage . | . . . Shots . | . . . Rammed . | . . . Targets Rammed . | . . . Kicked . | . . . Crushed . | . . . Highest Temperature 316 | 117 316 136 Average Temperature 91 | 50 101 89 Received Heat Transfer 150 | . 150 . Effects 1 | . 1 . Interference 1 | . 1 . Siege Activations . | . . . Robots Corrupted . | . . . Combat Hostiles . | . . . Parts Fried . | . . . Impact Corruptions . | . . . Robots Melted . | . . . Combat Hostiles . | . . . Parts Melted 2 | . 2 . Heat Transferred 1495 | 259 1199 37 Parts Sabotaged . | . . . Parts Stolen . | . . . Parts Stripped . | . . . Power Chain Reactions . | . . . Missiles Intercepted . | . . . Alert | -11 -10 -10 ------- Run | Scr Mat Min Peak Influence 223 | 15 223 18 Average Influence 60 | 4 72 17 Maximum Alert Level 1 | . 1 . Low Security (%) 95 | 100 94 100 Level 1 4 | . 5 . Level 2 . | . . . Level 3 . | . . . Level 4 . | . . . Level 5 . | . . . High Security . | . . . Max Security . | . . . Squads Dispatched 4 | . 4 . Investigation 4 | . 4 . Extermination . | . . . Reinforcement . | . . . Assault . | . . . Garrison . | . . . Intercept . | . . . Construction Impeded . | . . . Haulers Reinforced . | . . . Stealth | -11 -10 -10 --------- Run | Scr Mat Min Distress Signals . | . . . Communications Jammed . | . . . Distress Signals . | . . . Times Spotted 37 | . 18 19 Peak Tracking Total 11 | . 3 11 Tactical Retreats 1 | . 1 . Traps | -11 -10 -10 ------- Run | Scr Mat Min Traps Triggered 4 | . 4 . Indirectly . | . . . Trap Hack Attempts . | . . . Triggered . | . . . Disarmed . | . . . Reprogrammed . | . . . Reused . | . . . Traps Extracted . | . . . Installed . | . . . Triggered . | . . . Machines | -11 -10 -10 ---------- Run | Scr Mat Min Machines Disabled . | . . . Max in Single Turn . | . . . Machines Sabotaged . | . . . Garrisons Compromised . | . . . Overloaded Fab Kills . | . . . Fab Network Shutdowns . | . . . Hacking | -11 -10 -10 --------- Run | Scr Mat Min Machines Accessed 11 | . 11 . Terminals 8 | . 8 . Fabricators . | . . . Repair Stations 1 | . 1 . Recycling Units 2 | . 2 . Scanalyzers . | . . . Garrison Access . | . . . Total Hacks 44 | . 44 . Successful 26 | . 26 . Failed 18 | . 18 . Catastrophic 1 | . 1 . Database Lockouts . | . . . Manual 31 | . 31 . Terminals 38 | . 38 . Fabricators . | . . . Repair Stations 1 | . 1 . Recycling Units 5 | . 5 . Scanalyzers . | . . . Garrison Access . | . . . Terminal Hacks 13 | . 13 . Robot Schematic 1 | . 1 . Robot Analysis 2 | . 2 . Prototype ID Bank 2 | . 2 . Alert Level 1 | . 1 . Unreport Threat 1 | . 1 . Locate Traps 1 | . 1 . Surveillance Status 1 | . 1 . Transport Status 1 | . 1 . Recall Investigation 1 | . 1 . Registered Components 1 | . 1 . Zone Layout 1 | . 1 . Fabricator Hacks . | . . . Repair Station Hacks . | . . . Recycling Unit Hacks . | . . . Scanalyzer . | . . . Garrison Access Hacks . | . . . Unauthorized Hacks 33 | . 33 . Terminals 10 | . 10 . Track 6 | . 6 . Botnet 4 | . 4 . Fabricators . | . . . Repair Stations 1 | . 1 . Mechanics 1 | . 1 . Recycling Units 2 | . 2 . Tunnel 2 | . 2 . Scanalyzers . | . . . Garrison Access . | . . . Data Cores Recovered . | . . . Used . | . . . Hacking Detections 10 | . 10 . Full Trace Events 1 | . 1 . Feedback Events . | . . . Feedback Blocked . | . . . Robot Schematics Acquired 1 | . 1 . Robots Built . | . . . Matter . | . . . Time . | . . . Total Robot Build Rating . | . . . Part Schematics Acquired . | . . . Parts Built . | . . . Matter . | . . . Time . | . . . Total Part Build Rating . | . . . Parts Repaired . | . . . Time . | . . . Parts Recycled . | . . . Recycled Matter . | . . . Retrieved Matter . | . . . Retrieved Components . | . . . Parts Scanalyzed . | . . . Part Schematics Acquired . | . . . Parts Damaged . | . . . Bothacking | -11 -10 -10 ------------ Run | Scr Mat Min Used RIF Installer . | . . . Robots Hacked . | . . . Non-combat . | . . . Combat . | . . . Robot Hacks Applied . | . . . Relay Couplers Released . | . . . Robots Rewired . | . . . Allies Hacked . | . . . Hacks Repelled . | . . . Allies | -11 -10 -10 -------- Run | Scr Mat Min Total Allies . | . . . Largest Group . | . . . Highest-Rated Group . | . . . Highest-Rated Ally . | . . . Total Orders . | . . . Ally Attacks . | . . . Total Damage . | . . . Kills . | . . . Allies Corrupted . | . . . Allies Melted . | . . . Intel | -11 -10 -10 ------- Run | Scr Mat Min Robot Analysis Total 2 | . 2 . Derelict Logs Recovered . | . . . Drone Launches . | . . . Drone Recoveries . | . . . Exploration | -11 -10 -10 ------------- Run | Scr Mat Min Turns Passed 1839 | 68 1443 328 Spaces Moved 1196 | 44 943 209 Core 9 | 8 1 . Treads 304 | . 304 . Legs . | . . . Wheels 883 | 36 638 209 Hover . | . . . Flight . | . . . Fastest Speed 50 | 50 90 115 Average Speed 125 | 82 124 139 Slowest Speed 250 | 100 250 140 Overloaded Moves . | . . . Propulsion Burnouts . | . . . Robots Hopped . | . . . Cave-ins Triggered . | . . . Exploration Rate (%) 46 | 4 99 37 Regions Visited 2 Branch Regions 1 Pre-discovered Areas 2 | . 2 . Known Exits Taken . | . . . Unknown Exits Taken 2 | 1 1 . Scrap Searched 1 | . . 1 Spaces Dug 1 | . 1 . Terrain Destroyed 1 | . 1 . Melee 1 | . 1 . Projectile . | . . . AOE . | . . . Actions | -11 -10 -10 --------- Run | Scr Mat Min Total 1384 | 61 1098 225 Wait 49 | . 48 1 Move 1194 | 43 942 209 Hop . | . . . Pick Up 22 | 4 17 1 Fast Attach 15 | 8 7 . Attach 3 | . 2 1 Detach 1 | 1 . . Swap 9 | . 8 1 Drop 8 | . 8 . Fire 82 | 5 65 12 Melee 1 | . 1 . Ram . | . . . Kick . | . . . Crush . | . . . Escape Stasis . | . . . Rewire . | . . . Trap . | . . . Miscellaneous . | . . . Route ------- -11/Scrapyard -10/Materials (discovered 4 exits: [*Mat x3] / [*Min]) -10/Mines (discovered 1 exit: [*Mat]) History --------- Turn | Location | Event 11 | -11/Scrapyard | Discovered new exit (range 16) 69 | -11/Scrapyard | Entered Materials 314 | -10/Materials | Build established: Mutant 331 | -10/Materials | Discovered new exit (range 15) 818 | -10/Materials | Discovered new exit (range 11) 970 | -10/Materials | Discovered new exit (range 16) 1062 | -10/Materials | Build established: Scavenger-Mutant 1116 | -10/Materials | Discovered new exit (range 15) 1467 | -10/Materials | Build established: Hauler-Mutant 1512 | -10/Materials | Entered Mines 1661 | -10/Mines | Discovered new exit (range 6) 1788 | -10/Mines | Assembled infested the area 1792 | -10/Mines | A weapon hastily lodged in a ceiling crevice suddenly fell to the ground 1793 | -10/Mines | Assisted by a Guerilla fighting off Assembled 1827 | -10/Mines | Core integrity fell below 50% 1839 | -10/Mines | Core integrity fell below 20% 1840 | -10/Mines | Destroyed by D-53 Grenadier with Mini Grenade Launcher Last Messages --------------- 01811_ The unstable cave ceiling collapses. 01812_ as-16476 destroyed. 01816_ The unstable cave ceiling collapses. 01817_ Acquired 18 matter. 01818_ as-83414 destroyed. 01818_ as-39301 destroyed. 01818_ as-28300 destroyed. 01818_ as-68915 destroyed. 01818_ as-03300 destroyed. 01818_ as-12265 destroyed. 01820_ as-70241 destroyed. 01822_ as-24273 destroyed. 01822_ as-81248 destroyed. 01824_ Lgt. Assault Rifle destroyed. 01824_ U-05 Engineer lays Concrete. 01827_ U-05 Engineer builds a Wall. 01830_ U-05 Engineer destroyed. 01831_ The unstable cave ceiling collapses. 01836_ Particle Gun destroyed. 01836_ Wheel destroyed. Map ----- +----------------------------------------------------+ | ##?# #?????????????# ##??######??????# ## | | ###??# #?????????????# #?## ##?????# ## | | ?????# #?????????????# #?# #?????# ### | | ???### #????####?????## ##?# #?????# #?? | | ???# #???## ##????## #??## ##?????# #?? | | ???# ##??## #???## #??## < ##??????# #?? | | ???# #??## #???# ! #??# ##????#### ### | | #### #?## ###???# %%| ##?## #?????# | | ### ##?????## #| ##### ######## ###### | | ## #???????#### #????? | | ## ##??????????# ##### ###########????? | | #### ###???????????# #???# ##??????????????? | | #??# ##?????????????# ##### #???????????????? | | ???# ## #??????????????# #???????????????? | | ???##### ################ #######???????????????? | | ???????# ##??????????##????????? | | ???????# #????????? #????????? | | ???????################ #???????? #???????? | | ???????????????????#### #??????? #???????? | | ???????????????????# ##?????? #???????? | | ???????????????????# !%##????? ! ##??????? | | ???????????????????# =###???#*%= #??????? | | ???????????????????# #### | ##?????? | | ???????????????????# #?????? | | ???????????????????# #????? | | ???????????????????# @ ! ????? | | ???????????????????## %d ????? | | ????????????????????# = ## ???????? | | ????????????????????## #?????????? | | ?????????????????????## # ?????????? | | ??????????????????????######## #?????????? | | ??????????????????????????????# #??????????? | | ??????????????????????????????? % ??????????? | | ???????????????????????????????? *?????????? | | ????????????????????????????????# !%?????????? | | ?????????????????????????????????# ###????????? | | ?????????????????????????????????? #???????????? | | ???????????????????????????????????? #???????????? | | ?????????????????????????????????????#???????????? | | ?????????????????????????????????????????????????? | | ?????????????????????????????????????????????????? | | ?????????????????????????????????????????????????? | | ?????????????????????????????????????????????????? | | ?????????????????????????????????????????????????? | | ?????????????????????????????????????????????????? | | ?????????????????????????????????????????????????? | | ?????????????????????????????????????????????????? | | ?????????????????????????????????????????????????? | | ?????????????????????????????????????????????????? | | ?????????????????????????????????????????????????? | +----------------------------------------------------+ Best States ------------- Heat Dissipation 25 Energy Generation 10 Energy Capacity 125 Matter Stores 300 Matter Capacity 300 Sight Range 16 Terrain Scan Density 10 Evasion (%) 44 Recoil Reduction 1 Item Schematics ----------------- None Robot Schematics ------------------ M-13 Machinist | -10/Materials | Hacked Fabricated ------------ Nothing Alien Tech Used ----------------- None Achievements -------------- None Challenges ------------ None Game ------ Seed DispersionIntegrationFlamer Manual? 0 Play Time 00:12:58 Cumulative 296.8 hours Start 2019.11.20 @ 01:29:54 End 2019.11.20 @ 01:41:18 Sessions 1 Manual Loads 0 Difficulty Rogue Special Mode None Game No. 226 Rogue 226 Adventurer 0 Explorer 0 Win Type - Total 3 Types 3/0/0/0/0/0/0 Lore% 74 Gallery% 80 Achievement% 59 Wizard Run 0 Options --------- ASCII 0 Keyboard 0 Movement Mouse Keybinds 1 Fullscreen 2 Font 24/Smallcaps Map View 76x50 Tactical HUD 1 Map Filters NONE Filters NONE Steam 1 RUN: b32de40c-5ecf-480e-a705-f07ffb847416